bitfinex-derivatives/quotes_BTCF0:USTF0_20210708
["timestamp","ask_amount","ask_price","bid_price","bid_amount"]
[1625760103139,0.24057544,32844.0,32843.0,3.18790656]
[1625760103292,0.7793265,32844.0,32843.0,3.18790656]
[1625760104418,0.24057544,32844.0,32843.0,3.18790656]
[1625760105170,0.24057544,32844.0,32843.0,3.24490656]
[1625760105318,0.24057544,32844.0,32843.0,4.83694787]
[1625760105769,0.24057544,32844.0,32843.0,4.77994787]
[1625760106375,0.24057544,32844.0,32843.0,4.83694787]
[1625760108347,0.24057544,32844.0,32843.0,4.77994787]
[1625760108490,0.56654544,32844.0,32843.0,4.77994787]
[1625760108630,0.56654544,32844.0,32843.0,3.18790656]
[1625760108631,1.13530324,32844.0,32843.0,3.18790656]
[1625760108949,2.21260963,32844.0,32843.0,2.83078796]
[1625760109130,3.46954052,32844.0,32843.0,1.59104652]
[1625760109448,4.90600633,32844.0,32839.0,1.41455418]
[1625760109763,1.43652543,32841.0,32836.0,1.41118795]
[1625760109846,0.1199,32840.0,32836.0,1.41118795]
[1625760109980,0.1199,32840.0,32830.0,1.59562462]
[1625760110125,0.1199,32840.0,32829.0,1.53532279]
[1625760110126,1.73614106,32840.0,32829.0,1.53532279]
[1625760110317,1.73614106,32840.0,32829.0,1.38632279]
[1625760110475,0.72172632,32830.0,32826.0,0.24057544]
[1625760110581,1.08603632,32830.0,32826.0,0.24057544]
[1625760110732,4.3484,32827.0,32823.0,0.24057544]
[1625760111180,4.3484,32827.0,32823.0,0.22477544]
[1625760111626,4.3484,32827.0,32823.0,0.28177544]
[1625760111786,0.75172632,32830.0,32823.0,0.13917544]
[1625760112108,0.75172632,32830.0,32823.0,1.91209591]
[1625760112452,0.75172632,32830.0,32824.0,1.77122478]
[1625760112607,0.75172632,32830.0,32823.0,1.90859172]
[1625760112771,0.97445632,32830.0,32823.0,1.90859172]
[1625760112904,0.97445632,32830.0,32823.0,0.13917544]
[1625760114479,0.24057544,32824.0,32823.0,0.13917544]
[1625760116461,0.24057544,32824.0,32823.0,0.08217544]
[1625760120411,0.27057544,32824.0,32823.0,0.08217544]
[1625760124470,0.27057544,32824.0,32823.0,0.34336544]
[1625760124914,0.27057544,32824.0,32823.0,0.40036544]
[1625760125067,0.24057544,32824.0,32823.0,0.40036544]
[1625760125363,0.24057544,32824.0,32823.0,1.79759979]
[1625760126265,0.24057544,32824.0,32823.0,3.36835928]
[1625760127241,0.72172632,32830.0,32823.0,3.36835928]
[1625760127541,0.72172632,32830.0,32827.0,1.39518452]
[1625760127703,0.72172632,32830.0,32828.0,1.45170105]
[1625760127842,0.72172632,32830.0,32828.0,1.39470105]
[1625760128141,0.72172632,32830.0,32829.0,0.057]
[1625760128517,0.48115088,32830.0,32829.0,0.29757544]
[1625760129645,0.48115088,32830.0,32829.0,1.51984577]
[1625760130923,0.24057544,32830.0,32829.0,2.91442988]
[1625760131672,0.59837216,32840.0,32829.0,4.48166517]
[1625760131673,0.24057544,32840.0,32829.0,4.48166517]
[1625760131972,0.24057544,32840.0,32836.0,1.2179889]
[1625760132128,0.24057544,32840.0,32838.0,1.21846065]
[1625760132274,0.24057544,32840.0,32839.0,0.057]
[1625760132573,0.24057544,32840.0,32839.0,0.53815088]
[1625760132938,0.59837759,32845.0,32839.0,0.53815088]
[1625760133200,0.24057544,32845.0,32843.0,0.34777172]
[1625760133333,0.24057544,32845.0,32844.0,0.057]
[1625760133476,0.24057544,32845.0,32844.0,0.40461511]
[1625760133700,0.24057544,32845.0,32844.0,0.057]
[1625760133854,0.59836196,32848.0,32844.0,0.057]
[1625760134155,0.24057544,32848.0,32846.0,0.34739075]
[1625760134303,0.24057544,32848.0,32847.0,0.057]
[1625760134601,0.24057544,32848.0,32847.0,0.53815088]
[1625760135729,0.38779586,32849.0,32847.0,0.53815088]
[1625760136482,0.38779586,32849.0,32848.0,0.24057544]
[1625760136632,0.03,32849.0,32848.0,0.29757544]
[1625760137085,0.03,32849.0,32848.0,0.64550392]
[1625760137400,0.03,32849.0,32848.0,0.29757544]
[1625760137705,0.35776138,32852.0,32848.0,0.29757544]
[1625760137852,1.43050916,32858.0,32848.0,0.29757544]
[1625760137853,0.35773825,32854.0,32848.0,0.29757544]
[1625760138138,0.35769042,32857.0,32851.0,1.0]
[1625760138289,0.35769042,32857.0,32853.0,1.0]
[1625760138463,1.60898125,32866.0,32856.0,2.59369517]
[1625760138464,0.35761019,32866.0,32856.0,2.59369517]
[1625760138592,0.35757779,32870.0,32865.0,0.96230176]
[1625760138775,0.14657779,32870.0,32866.0,0.057]
[1625760138941,0.35754139,32874.0,32869.0,0.6897825]
[1625760139423,0.35754139,32874.0,32870.0,0.057]
[1625760139481,1.42962951,32880.0,32873.0,5.37596348]
[1625760139482,0.35749039,32880.0,32873.0,5.37596348]
[1625760139518,0.35749039,32880.0,32874.0,0.057]
[1625760139531,1.4294256,32885.0,32879.0,0.68748874]
[1625760139532,0.71470406,32885.0,32879.0,0.68748874]
[1625760139644,0.71470406,32885.0,32880.0,0.057]
[1625760139788,0.71459312,32890.0,32883.0,0.68633916]
[1625760139938,0.71459312,32890.0,32884.0,0.057]
[1625760140087,0.71211641,32895.0,32884.0,1.057]
[1625760140270,0.71204175,32897.0,32884.0,1.057]
[1625760140410,0.71204175,32897.0,32896.0,3.8902]
[1625760140541,0.71204175,32897.0,32896.0,5.14361176]
[1625760140763,0.71202419,32898.0,32896.0,5.14361176]
[1625760141070,1.0679473,32899.0,32896.0,5.14361176]
[1625760141071,0.71198767,32899.0,32896.0,5.14361176]
[1625760141439,0.17811321,32898.0,32896.0,5.14361176]
[1625760141740,0.17758566,32901.0,32896.0,5.14361176]
[1625760142190,0.17754828,32902.0,32896.0,5.08661176]
[1625760142341,0.17754828,32902.0,32896.0,1.19641176]
[1625760142493,0.17755725,32899.0,32896.0,0.96230176]
[1625760142687,0.48115088,32897.0,32896.0,0.48115088]
[1625760142804,3.49749189,32897.0,32896.0,0.48115088]
[1625760143244,1.19093035,32897.0,32896.0,0.48115088]
[1625760143469,0.48115088,32897.0,32896.0,0.48115088]
[1625760143770,2.25562952,32897.0,32896.0,0.48115088]
[1625760144446,3.49585971,32897.0,32896.0,0.48115088]
[1625760144600,0.65841154,32897.0,32896.0,0.48115088]
[1625760144745,1.18966635,32897.0,32896.0,0.48115088]
[1625760145049,2.25237757,32897.0,32896.0,0.48115088]
[1625760145797,0.65818745,32897.0,32896.0,0.48115088]
[1625760146251,0.48115088,32897.0,32896.0,0.48115088]
[1625760146922,0.48115088,32897.0,32896.0,0.20965088]
[1625760147076,0.96062583,32897.0,32877.0,1.0]
[1625760147227,2.5521418,32897.0,32877.0,1.0]
[1625760147400,3.5521418,32897.0,32870.0,0.17059418]
[1625760147533,0.70758458,32889.0,32862.0,0.68403287]
[1625760147702,0.03,32888.0,32862.0,0.68403287]
[1625760147824,0.03,32888.0,32860.0,5.6869]
[1625760148124,0.7074659,32887.0,32860.0,5.6869]
[1625760148273,0.03,32886.0,32860.0,5.6869]
[1625760148422,0.03,32886.0,32861.0,0.057]
[1625760148574,0.24057544,32865.0,32864.0,0.24057544]
[1625760148723,0.18357544,32865.0,32864.0,0.24057544]
[1625760148912,0.24057544,32872.0,32864.0,0.24057544]
[1625760149046,0.24057544,32872.0,32864.0,1.48896544]
[1625760149548,0.24057544,32872.0,32865.0,1.0]
[1625760149698,0.24057544,32872.0,32869.0,1.0]
[1625760150000,0.73719535,32889.0,32867.0,1.0]
[1625760150600,0.24057544,32882.0,32881.0,0.24057544]
[1625760150748,0.24057544,32882.0,32881.0,0.45723544]
[1625760162793,1.05494461,32906.0,32881.0,0.45723544]
[1625760162976,1.05494461,32906.0,32882.0,0.5]
[1625760163096,0.70311444,32910.0,32882.0,0.5]
[1625760163230,0.87297957,32915.0,32884.0,1.0]
[1625760163384,0.87297957,32915.0,32885.0,0.5]
[1625760163519,0.87297957,32915.0,32885.0,1.5]
[1625760163520,0.70297814,32914.0,32885.0,1.5]
[1625760163819,1.22437936,32915.0,32885.0,1.5]
[1625760163820,0.17,32915.0,32891.0,5.0963]
[1625760163970,0.17,32915.0,32891.0,5.39374]
[1625760164420,0.17,32915.0,32891.0,5.89374]
[1625760164572,0.17,32915.0,32893.0,1.0]
[1625760164723,0.24057544,32911.0,32909.0,0.24057544]
[1625760164870,0.24057544,32911.0,32909.0,0.49068544]
[1625760165496,0.17,32915.0,32909.0,0.49068544]
[1625760165773,1.40354101,32931.0,32909.0,0.49068544]
[1625760165774,0.70181714,32931.0,32909.0,0.49068544]
[1625760165923,0.70181714,32931.0,32912.0,1.0]
[1625760166073,0.99467993,32934.0,32912.0,1.0]
[1625760166222,0.99467993,32934.0,32910.0,1.057]
[1625760166372,0.99467993,32934.0,32910.0,1.0]
[1625760166523,0.2929,32934.0,32910.0,1.0]
[1625760166671,0.24057544,32926.0,32925.0,0.24057544]
[1625760166822,0.24057544,32930.0,32925.0,0.50745544]
[1625760166972,0.24057544,32930.0,32925.0,0.26688]
[1625760167278,0.5,32929.0,32925.0,0.26688]
[1625760167423,4.6288,32926.0,32911.0,0.057]
[1625760167573,4.95306,32926.0,32909.0,0.24057544]
[1625760168398,0.32426,32926.0,32909.0,0.24057544]
[1625760168612,0.24057544,32930.0,32909.0,0.24057544]
[1625760168698,0.24057544,32922.0,32921.0,0.24057544]
[1625760168849,0.24057544,32922.0,32921.0,0.45673544]
[1625760170199,0.24057544,32922.0,32912.0,0.24057544]
[1625760170348,0.46875544,32922.0,32912.0,0.24057544]
[1625760170501,0.96875544,32922.0,32912.0,0.24057544]
[1625760170801,0.48115088,32913.0,32912.0,0.24057544]
[1625760172601,0.24057544,32913.0,32912.0,0.24057544]
[1625760174028,0.49917544,32913.0,32912.0,0.24057544]
[1625760174177,0.52917544,32913.0,32912.0,0.24057544]
[1625760175978,0.52917544,32913.0,32903.0,0.48115088]
[1625760176128,0.49917544,32913.0,32903.0,0.48115088]
[1625760176279,0.52917544,32913.0,32903.0,0.48115088]
[1625760176505,0.24057544,32913.0,32903.0,0.48115088]
[1625760176806,0.24057544,32913.0,32908.0,0.24057544]
[1625760176955,0.24057544,32913.0,32908.0,0.52118544]
[1625760178685,0.24057544,32913.0,32908.0,0.24057544]
[1625760178834,0.24057544,32909.0,32908.0,0.24057544]
[1625760182215,0.24057544,32917.0,32908.0,0.24057544]
[1625760182373,0.24057544,32917.0,32908.0,0.57796544]
[1625760182517,0.24057544,32917.0,32908.0,1.07796544]
[1625760182665,0.24057544,32917.0,32908.0,2.07796544]
[1625760182816,0.24057544,32917.0,32916.0,0.48115088]
[1625760182965,0.24057544,32929.0,32916.0,0.48115088]
[1625760182966,0.24057544,32929.0,32916.0,0.76332088]
[1625760183419,0.03,32928.0,32916.0,0.76332088]
[1625760183568,0.03,32928.0,32916.0,1.76332088]
[1625760183716,0.03,32928.0,32916.0,0.76332088]
[1625760183866,0.03,32928.0,32921.0,1.0]
[1625760184016,0.03,32928.0,32919.0,1.0]
[1625760184166,0.03,32928.0,32919.0,1.5]
[1625760184316,0.03,32928.0,32919.0,0.5]
[1625760184615,0.03,32928.0,32923.0,1.0]
[1625760184765,0.03,32928.0,32927.0,0.72172632]
[1625760186193,0.0001,32928.0,32927.0,0.72172632]
[1625760188444,0.0001,32938.0,32927.0,0.72172632]
[1625760188895,0.24057544,32937.0,32933.0,0.24057544]
[1625760189043,0.0001,32936.0,32933.0,0.24057544]
[1625760190771,0.24057544,32934.0,32933.0,0.24057544]
[1625760190922,0.24067544,32934.0,32933.0,0.24057544]
[1625760195953,0.24067544,32934.0,32933.0,0.53690544]
[1625760196855,0.24067544,32934.0,32933.0,0.77748088]
[1625760197155,0.0001,32934.0,32933.0,0.77748088]
[1625760197307,0.0001,32937.0,32933.0,0.77748088]
[1625760197757,0.08858204,32935.0,32933.0,0.77748088]
[1625760197905,0.0001,32934.0,32933.0,0.77748088]
[1625760198056,0.08868349,32934.0,32933.0,0.77748088]
[1625760198961,0.08868349,32934.0,32927.0,0.48115088]
[1625760199111,0.42072349,32934.0,32927.0,0.48115088]
[1625760199262,0.08857645,32931.0,32927.0,0.48115088]
[1625760199412,0.0001,32930.0,32927.0,0.48115088]
[1625760200014,0.0921,32929.0,32927.0,0.48115088]
[1625760200167,0.0001,32928.0,32927.0,0.48115088]
[1625760200914,0.24067544,32928.0,32927.0,0.48115088]
[1625760201240,0.32926505,32928.0,32927.0,0.48115088]
[1625760202272,0.24067544,32928.0,32927.0,0.48115088]
[1625760202574,0.77134804,32928.0,32927.0,0.48115088]
[1625760202720,1.27134804,32928.0,32904.0,0.45580553]
[1625760202883,0.96230176,32905.0,32904.0,0.09283422]
[1625760203209,0.96230176,32905.0,32896.0,1.53461001]
[1625760203210,1.26992176,32905.0,32896.0,1.53461001]
[1625760203254,0.0001,32904.0,32895.0,0.51317967]
[1625760203396,0.0001,32904.0,32890.0,0.6851788]
[1625760203470,0.0001,32904.0,32882.0,1.78222775]
[1625760203471,4.2344,32902.0,32885.0,0.68632613]
[1625760203622,0.0571,32901.0,32885.0,0.68632613]
[1625760203799,0.0571,32901.0,32882.0,0.24057544]
[1625760204116,0.0571,32901.0,32882.0,0.92771173]
[1625760204395,0.5,32900.0,32882.0,0.68713629]
[1625760204570,0.5,32900.0,32881.0,1.03070443]
[1625760204571,0.0571,32899.0,32881.0,0.68762027]
[1625760204712,0.5,32898.0,32881.0,0.68762027]
[1625760204830,0.0571,32897.0,32876.0,1.63409375]
[1625760204982,0.96230176,32882.0,32876.0,1.63409375]
[1625760205133,0.96230176,32882.0,32874.0,0.68924432]
[1625760205134,0.057,32881.0,32874.0,0.68924432]
[1625760205436,0.057,32881.0,32872.0,1.20617756]
[1625760205437,0.057,32881.0,32872.0,0.68979237]
[1625760205574,0.5001,32880.0,32872.0,0.68979237]
[1625760205723,0.5001,32880.0,32869.0,0.69063947]
[1625760205724,0.057,32879.0,32869.0,0.69063947]
[1625760205872,0.0001,32878.0,32869.0,0.69063947]
[1625760206174,0.0001,32878.0,32868.0,0.69082154]
[1625760206772,0.0001,32878.0,32868.0,1.72644772]
[1625760206924,0.48115088,32869.0,32868.0,0.69082154]
[1625760207223,0.48115088,32869.0,32868.0,1.72644531]
[1625760208103,0.24057544,32869.0,32868.0,1.72644531]
[1625760208277,0.24057544,32882.0,32868.0,4.31605409]
[1625760208425,0.24057544,32882.0,32873.0,0.69023872]
[1625760208574,0.24057544,32882.0,32873.0,0.97774872]
[1625760208875,0.24057544,32881.0,32876.0,0.24057544]
[1625760209476,0.24057544,32881.0,32876.0,0.93058826]
[1625760209776,0.24057544,32881.0,32877.0,0.68993737]
[1625760209928,0.24057544,32881.0,32876.0,0.93061803]
[1625760210227,0.24057544,32881.0,32876.0,0.24057544]
[1625760210380,0.24057544,32881.0,32876.0,0.93059467]
[1625760210679,0.24057544,32881.0,32877.0,0.68968113]
[1625760210828,0.24057544,32881.0,32877.0,0.99896113]
[1625760210977,0.24057544,32881.0,32880.0,0.24057544]
[1625760211878,0.24057544,32881.0,32880.0,0.54353544]
[1625760212402,0.24057544,32881.0,32880.0,0.54063544]
[1625760213919,0.24057544,32881.0,32880.0,1.23051058]
[1625760216232,0.24057544,32881.0,32880.0,0.54063544]
[1625760218036,0.24057544,32881.0,32880.0,1.23036691]
[1625760218936,0.24057544,32881.0,32880.0,2.26413834]
[1625760220023,0.24057544,32881.0,32880.0,1.23036691]
[1625760220144,0.53559544,32881.0,32880.0,0.92740691]
[1625760220288,0.53559544,32881.0,32880.0,0.23767544]
[1625760220437,0.59259544,32881.0,32880.0,0.23767544]
[1625760221038,0.59259544,32881.0,32876.0,0.24057544]
[1625760221187,0.59259544,32881.0,32870.0,0.24057544]
[1625760221939,0.59259544,32881.0,32870.0,0.93230689]
[1625760222238,0.59259544,32881.0,32870.0,0.24057544]
[1625760222989,0.48115088,32871.0,32870.0,0.24057544]
[1625760225620,0.53815088,32871.0,32870.0,0.24057544]
[1625760226071,0.48115088,32871.0,32870.0,0.24057544]
[1625760226371,0.53815088,32871.0,32870.0,0.24057544]
[1625760226894,0.48115088,32871.0,32870.0,0.24057544]
[1625760228096,1.10301755,32895.0,32870.0,0.24057544]
[1625760228250,0.03,32894.0,32870.0,0.57803544]
[1625760228792,0.29586,32894.0,32870.0,0.57803544]
[1625760229077,0.24057544,32884.0,32882.0,0.24057544]
[1625760229236,0.087,32883.0,32882.0,0.24057544]
[1625760230726,0.41934,32883.0,32870.0,0.24057544]
[1625760231027,0.24057544,32875.0,32874.0,0.24057544]
[1625760231176,0.66880544,32875.0,32874.0,0.20977544]
[1625760231325,0.66880544,32875.0,32874.0,0.19237544]
[1625760231625,0.63880544,32875.0,32874.0,0.19237544]
[1625760233127,0.90938088,32875.0,32874.0,0.19237544]
[1625760234478,0.87938088,32875.0,32874.0,0.19237544]
[1625760234866,0.87938088,32875.0,32867.0,0.24057544]
[1625760235012,0.90938088,32875.0,32867.0,0.24057544]
[1625760235157,0.48115088,32868.0,32867.0,0.24057544]
[1625760235327,0.81470088,32868.0,32867.0,0.24057544]
[1625760235466,0.81470088,32868.0,32858.0,0.24057544]
[1625760235757,0.03,32867.0,32858.0,0.24057544]
[1625760236960,0.03,32867.0,32855.0,0.24057544]
[1625760237108,0.03,32867.0,32720.0,1.0]
[1625760237109,0.72172632,32856.0,32851.0,0.24057544]
[1625760237262,0.057,32855.0,32851.0,0.24057544]
[1625760237410,0.057,32855.0,32847.0,0.24057544]
[1625760237563,0.057,32855.0,32841.0,0.24057544]
[1625760237860,0.03,32854.0,32841.0,0.24057544]
[1625760238160,4.9726,32852.0,32841.0,0.24057544]
[1625760238461,0.057,32851.0,32841.0,0.24057544]
[1625760238612,0.087,32851.0,32841.0,0.24057544]
[1625760239060,0.24057544,32842.0,32841.0,0.24057544]
[1625760239515,0.29757544,32842.0,32841.0,0.24057544]
[1625760240569,0.24057544,32842.0,32841.0,0.24057544]
[1625760243412,0.29757544,32842.0,32841.0,0.24057544]
[1625760250248,0.24057544,32842.0,32841.0,0.24057544]
[1625760254980,0.29757544,32842.0,32841.0,0.24057544]
[1625760255130,0.24057544,32842.0,32841.0,0.24057544]
[1625760255956,0.29757544,32842.0,32841.0,0.24057544]
[1625760257157,0.29757544,32842.0,32836.0,0.24057544]
[1625760259188,0.24057544,32837.0,32836.0,0.24057544]
[1625760259340,0.64910544,32837.0,32836.0,0.24057544]
[1625760259790,0.64910544,32837.0,32833.0,0.59020465]
[1625760259940,0.64910544,32837.0,32830.0,0.3499885]
[1625760260240,0.64910544,32837.0,32828.0,0.59076841]
[1625760261141,0.48115088,32829.0,32828.0,0.24057544]
[1625760261290,0.87310088,32829.0,32828.0,0.24057544]
[1625760261442,0.87310088,32829.0,32828.0,0.59166423]
[1625760261591,0.87310088,32829.0,32828.0,0.24057544]
[1625760261893,0.87310088,32829.0,32827.0,0.35087971]
[1625760262343,0.87310088,32829.0,32827.0,1.05449633]
[1625760263094,0.87310088,32829.0,32827.0,0.35180239]
[1625760263244,0.81610088,32829.0,32827.0,0.35180239]
[1625760263398,0.87310088,32829.0,32828.0,0.35170871]
[1625760263769,0.87310088,32829.0,32827.0,0.35182821]
[1625760264821,0.87310088,32829.0,32828.0,0.35181004]
[1625760265346,0.87310088,32829.0,32828.0,0.28161004]
[1625760265653,0.90310088,32829.0,32821.0,1.05688262]
[1625760265948,0.90310088,32829.0,32819.0,0.24057544]
[1625760266245,0.90310088,32829.0,32819.0,1.2969794]
[1625760266696,0.90310088,32829.0,32819.0,0.24057544]
[1625760267300,0.48115088,32820.0,32818.0,1.05695511]
[1625760267449,0.70001088,32820.0,32818.0,1.05695511]
[1625760267596,0.057,32819.0,32818.0,1.05695511]
[1625760267747,0.057,32819.0,32817.0,1.99626535]
[1625760267898,0.70001088,32820.0,32817.0,1.99626535]
[1625760268197,0.70001088,32820.0,32818.0,1.05596079]
[1625760268502,0.75701088,32820.0,32818.0,1.05596079]
[1625760268647,0.75701088,32820.0,32817.0,1.99586366]
[1625760269247,0.99758632,32820.0,32817.0,1.99586366]
[1625760269846,0.99758632,32820.0,32817.0,0.9398]
[1625760270072,0.99758632,32820.0,32817.0,1.99494038]
[1625760270674,0.94058632,32820.0,32817.0,1.99494038]
[1625760270823,0.94058632,32820.0,32819.0,1.05479605]
[1625760271126,0.94058632,32820.0,32818.0,1.05485411]
[1625760271649,0.94058632,32820.0,32819.0,1.05473154]
[1625760271799,0.94058632,32820.0,32818.0,1.05441017]
[1625760272998,0.94058632,32820.0,32819.0,1.05490592]
[1625760273302,0.72172632,32820.0,32819.0,1.05490592]
[1625760273752,0.72172632,32820.0,32819.0,2.28472771]
[1625760274051,0.72172632,32820.0,32819.0,1.05490592]
[1625760274357,0.72172632,32820.0,32817.0,0.9398]
[1625760274499,1.08775632,32820.0,32817.0,0.9398]
[1625760275259,0.24057544,32818.0,32817.0,0.9398]
[1625760275409,0.29757544,32818.0,32817.0,0.9398]
[1625760275858,0.29757544,32818.0,32813.0,1.05695606]
[1625760276226,0.29757544,32818.0,32814.0,1.05683885]
[1625760276227,0.24057544,32818.0,32814.0,1.05683885]
[1625760276678,0.057,32817.0,32815.0,1.05744432]
[1625760277279,0.24057544,32816.0,32815.0,1.05744432]
[1625760278274,0.24057544,32816.0,32815.0,3.6972854]
[1625760279177,0.24057544,32816.0,32815.0,2.28937016]
[1625760279607,0.24057544,32816.0,32815.0,1.05744432]
[1625760280131,0.24057544,32816.0,32815.0,2.29129042]
[1625760280430,0.24057544,32816.0,32815.0,1.05744432]
[1625760280732,0.24057544,32816.0,32815.0,2.2922108]
[1625760284334,0.48085544,32816.0,32815.0,2.2922108]
[1625760284710,0.53785544,32816.0,32815.0,2.2922108]
[1625760284866,0.53785544,32816.0,32815.0,3.70516795]
[1625760285017,0.53785544,32816.0,32815.0,2.2922108]
[1625760285614,2.48177176,32830.0,32815.0,2.2922108]
[1625760285765,0.3024,32821.0,32815.0,2.2922108]
[1625760285925,0.3024,32821.0,32818.0,1.05975809]
[1625760286510,0.3024,32821.0,32819.0,1.06048164]
[1625760286689,0.3024,32821.0,32818.0,1.06077706]
[1625760287269,0.3024,32821.0,32820.0,0.48115088]
[1625760289516,0.3024,32821.0,32820.0,0.25235088]
[1625760290869,0.24057544,32822.0,32820.0,0.25235088]
[1625760291998,0.74057544,32822.0,32818.0,0.70951351]
[1625760292170,1.09141544,32822.0,32818.0,0.36441351]
[1625760292314,1.09141544,32822.0,32811.0,0.66501132]
[1625760292445,0.03,32821.0,32810.0,0.24057544]
[1625760292594,0.03,32821.0,32809.0,1.06298759]
[1625760292757,0.03,32821.0,32807.0,1.24648084]
[1625760293055,0.03,32821.0,32809.0,0.53422937]
[1625760293347,0.72172632,32810.0,32809.0,0.53422937]
[1625760293496,4.89300632,32810.0,32809.0,0.53422937]
[1625760293797,4.89300632,32810.0,32808.0,0.53390968]
[1625760294096,4.89300632,32810.0,32804.0,0.24057544]
[1625760294419,4.89300632,32810.0,32809.0,0.53449179]
[1625760295523,4.89300632,32810.0,32809.0,0.33129179]
[1625760295973,4.89300632,32810.0,32805.0,1.24712185]
[1625760296733,4.89300632,32810.0,32807.0,1.24724028]
[1625760296872,4.89300632,32810.0,32807.0,1.59158028]
[1625760297024,4.89300632,32810.0,32809.0,1.24718694]
[1625760297323,4.89300632,32810.0,32808.0,1.24721767]
[1625760297473,4.89300632,32810.0,32807.0,1.2472925]
[1625760297775,1.04270632,32810.0,32806.0,1.24672804]
[1625760297947,0.72172632,32810.0,32806.0,1.24672804]
[1625760298074,0.72172632,32810.0,32808.0,1.24665347]
[1625760298224,0.72172632,32810.0,32809.0,1.24631093]
[1625760298524,0.72172632,32810.0,32808.0,1.2466676]
[1625760298874,0.72172632,32810.0,32805.0,1.24671113]
[1625760298875,1.05852632,32810.0,32805.0,1.24671113]
[1625760298988,1.05852632,32810.0,32804.0,1.66538816]
[1625760298989,1.05852632,32810.0,32807.0,0.17810886]
[1625760299447,0.24057544,32809.0,32807.0,0.17810886]
[1625760300793,0.24057544,32809.0,32808.0,0.17802927]
[1625760300944,0.24057544,32809.0,32805.0,1.24614206]
[1625760301390,0.24057544,32809.0,32808.0,0.17802342]
[1625760301676,0.24057544,32809.0,32806.0,0.17804233]
[1625760301977,0.24057544,32809.0,32807.0,0.17807778]
[1625760302728,0.24057544,32809.0,32806.0,0.1780827]
[1625760302880,0.24057544,32809.0,32807.0,0.17808156]
[1625760303477,0.24057544,32809.0,32806.0,0.17800302]
[1625760303931,0.24057544,32809.0,32805.0,0.17800854]
[1625760304379,0.24057544,32809.0,32806.0,0.17804306]
[1625760305138,0.24057544,32809.0,32807.0,0.17803496]
[1625760305447,0.24057544,32809.0,32806.0,0.17798469]
[1625760307758,0.24057544,32809.0,32807.0,0.17805816]
[1625760309711,0.24057544,32809.0,32807.0,0.14575816]
[1625760310237,0.24057544,32809.0,32804.0,0.24057544]
[1625760310388,0.55324544,32809.0,32804.0,0.24057544]
[1625760311439,0.24057544,32805.0,32804.0,0.24057544]
[1625760313839,0.33147544,32805.0,32804.0,0.24057544]
[1625760315414,0.24057544,32805.0,32804.0,0.24057544]
[1625760316015,0.24057544,32805.0,32804.0,1.48902277]
[1625760317146,0.24057544,32805.0,32804.0,2.91576976]
[1625760317443,0.24057544,32805.0,32804.0,4.52069167]
[1625760318869,0.24057544,32805.0,32804.0,4.74610167]
[1625760320597,0.24057544,32805.0,32804.0,3.14117976]
[1625760320823,0.24057544,32805.0,32804.0,4.74920642]
[1625760322849,0.24057544,32805.0,32804.0,5.8216767]
[1625760326753,0.24057544,32809.0,32804.0,5.8216767]
[1625760326904,0.24057544,32809.0,32808.0,5.36501363]
[1625760327597,0.24057544,32809.0,32808.0,5.60558907]
[1625760327732,0.24057544,32817.0,32808.0,5.60558907]
[1625760327940,0.24057544,32817.0,32816.0,2.32506729]
[1625760328059,0.24057544,32817.0,32816.0,2.57250729]
[1625760328215,0.24057544,32817.0,32816.0,4.00327839]
[1625760328933,0.24057544,32817.0,32816.0,2.57250729]
[1625760329610,0.24057544,32817.0,32816.0,4.24407283]
[1625760330966,0.24057544,32817.0,32816.0,5.85398596]
[1625760331416,0.24057544,32820.0,32816.0,5.85398596]
[1625760331562,0.24057544,32820.0,32819.0,0.24057544]
[1625760331712,0.24057544,32820.0,32819.0,5.60791589]
[1625760332312,0.24057544,32820.0,32819.0,3.99771376]
[1625760333514,0.24057544,32820.0,32819.0,2.56642297]
[1625760333813,0.24057544,32820.0,32819.0,3.99842887]
[1625760334414,0.24057544,32820.0,32819.0,5.60927649]
[1625760336551,0.24057544,32820.0,32819.0,3.99842887]
[1625760336669,0.24057544,32820.0,32819.0,1.31404353]
[1625760336835,0.24057544,32820.0,32819.0,1.07346809]
[1625760337023,0.24057544,32820.0,32818.0,1.07421997]
[1625760337024,0.46934544,32820.0,32818.0,1.07421997]
[1625760337139,0.46934544,32820.0,32817.0,1.0742433]
[1625760337567,0.24057544,32818.0,32817.0,1.0742433]
[1625760337867,0.24057544,32818.0,32816.0,1.25325839]
[1625760338016,0.24057544,32818.0,32817.0,1.07432033]
[1625760338318,0.24057544,32818.0,32817.0,2.32769799]
[1625760338770,0.24057544,32818.0,32817.0,3.7602244]
[1625760340958,0.24057544,32818.0,32817.0,2.32769799]
[1625760341254,0.24057544,32818.0,32817.0,1.07432033]
[1625760341550,3.7611,32817.0,32816.0,1.31532569]
[1625760341852,3.7611,32817.0,32816.0,1.07475025]
[1625760342452,3.7611,32817.0,32812.0,0.24057544]
[1625760342756,3.7611,32817.0,32816.0,1.0750435]
[1625760344479,3.7611,32817.0,32816.0,2.32947026]
[1625760345379,3.7611,32817.0,32816.0,1.0750435]
[1625760345683,4.00167544,32817.0,32816.0,1.0750435]
[1625760346131,4.00167544,32817.0,32815.0,1.07564306]
[1625760346431,4.00167544,32817.0,32816.0,1.07571038]
[1625760347557,4.00167544,32817.0,32812.0,1.43431119]
[1625760347558,4.00167544,32817.0,32815.0,1.07577075]
[1625760347858,5.05579809,32817.0,32815.0,1.07577075]
[1625760348535,1.05320809,32816.0,32814.0,1.07611397]
[1625760348689,0.0925,32815.0,32814.0,1.07611397]
[1625760348835,1.14517128,32815.0,32813.0,1.07615147]
[1625760348985,1.14517128,32815.0,32812.0,1.07616581]
[1625760349285,1.05119201,32814.0,32812.0,1.07616581]
[1625760349510,1.05119201,32814.0,32811.0,1.07618829]
[1625760349661,0.48115088,32812.0,32811.0,1.07618829]
[1625760349810,0.74374088,32812.0,32811.0,1.07618829]
[1625760351013,0.74374088,32812.0,32811.0,0.55898829]
[1625760351163,0.74374088,32812.0,32811.0,0.30028829]
[1625760351314,0.74374088,32812.0,32807.0,1.255915]
[1625760351766,0.24057544,32808.0,32807.0,0.891415]
[1625760351913,0.24057544,32808.0,32807.0,0.592015]
[1625760352064,0.24057544,32808.0,32807.0,0.471215]
[1625760352516,0.24057544,32808.0,32807.0,1.18894555]
[1625760352666,0.24057544,32808.0,32807.0,0.71773055]
[1625760353492,0.092,32807.0,32800.0,1.37208197]
[1625760353688,0.092,32807.0,32797.0,1.61487456]
[1625760353841,0.092,32807.0,32797.0,1.43507456]
[1625760353842,0.72172632,32801.0,32797.0,1.43507456]
[1625760353958,1.02784632,32801.0,32788.0,0.24057544]
[1625760354395,1.52784632,32801.0,32788.0,0.01357544]
[1625760354543,1.52784632,32801.0,32787.0,0.25]